Cogmind - Beta 11.1 @@@ ROGUE MODE // 2022.09.27 @ 22:19:09 Player: DuckBoy Result: Destroyed by G-47 Trooper with Particle Gun Performance ------------- Evolutions (0) 0 Regions Visited (1) 200 Robots Destroyed (8) 40 Value Destroyed (197) 197 Prototype IDs (0) 0 Alien Tech Used (0) 0 Bonus (0) 0 TOTAL SCORE: 437 Bonus ------- None Cogmind --------- Core Integrity 0/250 Matter 290/300 Energy 80/100 System Corruption 0% Temperature Cool (9) Movement Rolling (100) Location -10/Materials Parts ------- > --- POWER (1) -------- (None) > --- PROPULSION (2) --- Compact Wheel Compact Wheel > --- UTILITY (2) ------ Small Storage Unit > --- WEAPON (2) ------- (None) > --- INVENTORY (8) ---- Compact Wheel Compact Wheel Compact Wheel Signal Interpreter Peak State ------------ > --- POWER ------------ Light Ion Engine > --- PROPULSION ------- Light Treads Compact Wheel > --- UTILITY ---------- Small Storage Unit > --- WEAPON ----------- Assault Rifle Light Assault Rifle > --- INVENTORY -------- (None) [Rating: 6] Favorites ----------- Power Light Ion Engine Engine Light Ion Engine Propulsion Compact Wheel Treads Light Treads Wheel Compact Wheel Utility Small Storage Unit Storage Small Storage Unit Weapon Assault Rifle Ballistic Gun Assault Rifle Build | -11 -10 ------- Run | Scr Mat Slots Evolved . | . . Power . | . . Propulsion . | . . Utility . | . . Weapon . | . . Parts Attached 10 | 6 4 Power 1 | 1 . Engine 1 | 1 . Core . | . . Reactor . | . . Propulsion 6 | 2 4 Treads 2 | 1 1 Leg . | . . Wheel 4 | 1 3 Hover . | . . Flight . | . . Utility 1 | 1 . Device . | . . Storage 1 | 1 . Processor . | . . Hackware . | . . Protection . | . . Artifact . | . . Weapon 2 | 2 . Energy Gun . | . . Energy Cannon . | . . Ballistic Gun 2 | 2 . Ballistic Cannon . | . . Launcher . | . . Special Weapon . | . . Impact Weapon . | . . Slashing Weapon . | . . Piercing Weapon . | . . Special Melee Weapon . | . . Unidentified Prototypes . | . . Parts Lost 6 | . 6 Power 1 | . 1 Propulsion 3 | . 3 Utility . | . . Weapon 2 | . 2 Highest Loss Streak 3 | . 3 To Critical Strikes . | . . Average Slot Usage (%) 68 | . 68 Engine 9 | . 9 Treads 13 | . 13 Wheel 14 | . 14 Storage 14 | . 14 Ballistic Gun 16 | . 16 Naked Turns . | . . Heaviest Build 11 | 11 11 Greatest Support 20 | 20 20 Greatest Overweight (x) 2 | 2 1 Average Overweight (x) . | . . Largest Inventory Capacity 8 | 8 8 Average Capacity 7 | 7 8 Most Carried 7 | 1 7 Average Carried 2 | . 3 Final Capacity 8 | 8 8 Final Carried 4 | 1 4 Class Distribution -------------------- 100% | Mutant Dominant Class ---------------- Mutant | -10/Materials Resources | -11 -10 ----------- Run | Scr Mat Matter Collected 336 | 188 148 Remotely . | . . Salvage Created 268 | . 268 Parts 16 | . 16 Haulers Intercepted 1 | . 1 Recyclers Shooed . | . . Parts Field Recycled . | . . Retrieved Matter . | . . Parts Self-Destructed . | . . Prevented . | . . Kills | -11 -10 ------- Run | Scr Mat Combat Hostiles Destroyed 2 | . 2 Guns 2 | . 2 Classes Destroyed 6 | . 6 Worker 1 | . 1 Builder 1 | . 1 Hauler 1 | . 1 Recycler 1 | . 1 Watcher 2 | . 2 Grunt 2 | . 2 Best Kill Streak 4 | . 4 Combat Bots Only 2 | . 2 Max Kills in Single Turn 2 | . 2 Gunslinging . | . . Exploded . | . . Melee . | . . Uniques/NPCs Destroyed . | . . Combat | -11 -10 -------- Run | Scr Mat Damage Taken 884 | . 884 Core 254 | . 254 Absorbed by Shields . | . . Core Remaining (%) 100 | 100 . Volleys Fired 19 | . 19 Largest 2 | . 2 Hottest 40 | . 40 Shots Fired 38 | . 38 Gun 38 | . 38 Cannon . | . . Launcher . | . . Special . | . . Kinetic 38 | . 38 Thermal . | . . Explosive . | . . Electromagnetic . | . . Robot Hit Streak 5 | . 5 Robot Miss Streak 5 | . 5 Penetration Max . | . . Secondary Targets . | . . Shots Hit Robots 20 | . 20 Core Hits 16 | . 16 Critical Kills . | . . Critical Parts Destroyed . | . . Critical Strikes . | . . Melee Attacks . | . . Impact . | . . Slashing . | . . Piercing . | . . Sneak Attacks . | . . Combat Hostiles . | . . Follow-up Attacks . | . . Damage Inflicted 799 | . 799 Guns 214 | . 214 Cannons . | . . Explosions 555 | . 555 Melee . | . . Ramming 30 | . 30 Kinetic 214 | . 214 Thermal . | . . Explosive 555 | . 555 Electromagnetic . | . . Impact . | . . Slashing . | . . Piercing . | . . Highest Corruption . | . . Average Corruption . | . . Corruption Purged . | . . Corruption Blocked . | . . Overload Shots . | . . Overflow Damage 47 | . 47 Projectiles . | . . Explosions 47 | . 47 Melee . | . . Knockbacks . | . . Impact . | . . Kinetic . | . . Secondary . | . . Self-Inflicted Damage 81 | . 81 Shots 1 | . 1 Rammed 20 | . 20 Targets Rammed 21 | . 21 Kicked . | . . Crushed 1 | . 1 Highest Temperature 19 | . 19 Average Temperature 9 | . 9 Received Heat Transfer 474 | . 474 Siege Activations . | . . Robots Corrupted . | . . Combat Hostiles . | . . Parts Fried . | . . Impact Corruptions . | . . Robots Melted . | . . Combat Hostiles . | . . Parts Melted . | . . Heat Transferred . | . . Parts Sabotaged . | . . Parts Stolen . | . . Parts Stripped . | . . Power Chain Reactions . | . . Missiles Intercepted . | . . Alert | -11 -10 ------- Run | Scr Mat Peak Influence 319 | . 319 Initial . | . . Average 123 | . 146 Maximum Alert Level 1 | . 1 Low Security (%) 67 | 100 61 Level 1 32 | . 38 Level 2 . | . . Level 3 . | . . Level 4 . | . . Level 5 . | . . High Security . | . . Max Security . | . . Squads Dispatched 4 | . 4 Investigation 2 | . 2 Extermination . | . . Reinforcement 2 | . 2 Assault . | . . Garrison . | . . Intercept . | . . Searches Triggered . | . . Construction Impeded . | . . Haulers Reinforced . | . . Active Scanning Responses . | . . Cargo Convoy Interrupts . | . . Stealth | -11 -10 --------- Run | Scr Mat Distress Signals 1 | . 1 Communications Jammed . | . . Distress Signals . | . . Times Spotted 12 | . 12 Peak Tracking Total 4 | . 4 Tactical Retreats 2 | . 2 Traps | -11 -10 ------- Run | Scr Mat Traps Triggered 2 | . 2 Indirectly . | . . Trap Hack Attempts . | . . Triggered . | . . Disarmed . | . . Reprogrammed . | . . Reused . | . . Traps Extracted . | . . Installed . | . . Triggered . | . . Machines | -11 -10 ---------- Run | Scr Mat Machines Disabled 7 | . 7 Max in Single Turn 2 | . 2 Machines Sabotaged . | . . Garrisons Compromised . | . . Overloaded Fab Kills . | . . Hacking | -11 -10 --------- Run | Scr Mat Machines Accessed 3 | . 3 Terminals 3 | . 3 Fabricators . | . . Repair Stations . | . . Recycling Units . | . . Scanalyzers . | . . Garrison Access . | . . Total Hacks 6 | . 6 Successful 1 | . 1 Failed 5 | . 5 Catastrophic 2 | . 2 Database Lockouts . | . . Manual 6 | . 6 Terminals 6 | . 6 Fabricators . | . . Repair Stations . | . . Recycling Units . | . . Scanalyzers . | . . Garrison Access . | . . Terminal Hacks . | . . Fabricator Hacks . | . . Repair Station Hacks . | . . Recycling Unit Hacks . | . . Scanalyzer . | . . Garrison Access Hacks . | . . Unauthorized Hacks 1 | . 1 Terminals 1 | . 1 Botnet 1 | . 1 Fabricators . | . . Repair Stations . | . . Recycling Units . | . . Scanalyzers . | . . Garrison Access . | . . Data Cores Recovered . | . . Used . | . . Hacking Detections 3 | . 3 Full Trace Events 1 | . 1 Feedback Events . | . . Feedback Blocked . | . . Robot Schematics Acquired . | . . Robots Built . | . . Authchips . | . . Time . | . . Total Robot Build Rating . | . . Part Schematics Acquired . | . . Parts Built . | . . Authchips . | . . Time . | . . Total Part Build Rating . | . . Parts Repaired . | . . Time . | . . Parts Recycled . | . . Recycled Matter . | . . Retrieved Matter . | . . Retrieved Components . | . . Parts Scanalyzed . | . . Part Schematics Acquired . | . . Parts Damaged . | . . Bothacking | -11 -10 ------------ Run | Scr Mat Used RIF Installer . | . . Robots Hacked . | . . Non-combat . | . . Combat . | . . Robot Hacks Applied . | . . Relay Couplers Released . | . . Fabnet Peak Effective % . | . . Robots Rewired . | . . Allies Hacked . | . . Hacks Repelled . | . . Allies | -11 -10 -------- Run | Scr Mat Total Allies . | . . Largest Group . | . . Highest-Rated Group . | . . Highest-Rated Ally . | . . Total Orders . | . . Ally Attacks . | . . Total Damage . | . . Kills . | . . Allies Corrupted . | . . Allies Melted . | . . Intel | -11 -10 ------- Run | Scr Mat Robot Analysis Total . | . . Derelict Logs Recovered . | . . Drone Launches . | . . Drone Recoveries . | . . Exploration | -11 -10 ------------- Run | Scr Mat Turns Passed 478 | 76 402 Spaces Moved 257 | 47 210 Core 13 | 9 4 Treads 173 | 37 136 Legs . | . . Wheels 71 | 1 70 Hover . | . . Flight . | . . Fastest Speed 50 | 50 100 Average Speed 139 | 141 138 Slowest Speed 160 | 160 160 Overloaded Moves . | . . Propulsion Burnouts . | . . Robots Hopped . | . . Cave-ins Triggered . | . . Exploration Rate (%) 30 | 4 56 Regions Visited 1 Branch Regions . Pre-discovered Areas . | . . Known Exits Taken . | . . Unknown Exits Taken 1 | 1 . Scrap Searched . | . . Spaces Dug . | . . Terrain Destroyed 26 | . 26 Melee . | . . Projectile . | . . AOE 26 | . 26 Terrain Rammed . | . . Walls Destroyed . | . . Machines Disabled . | . . Actions | -11 -10 --------- Run | Scr Mat Total 331 | 53 278 Wait 18 | . 18 Move 256 | 46 210 Hop . | . . Pick Up 7 | 1 6 Fast Attach 6 | 6 . Attach 3 | . 3 Detach . | . . Swap 1 | . 1 Drop . | . . Fire 19 | . 19 Melee . | . . Ram 8 | . 8 Kick . | . . Crush 13 | . 13 Escape Stasis . | . . Rewire . | . . Trap . | . . Miscellaneous . | . . Route ------- -11/Scrapyard -10/Materials (discovered 1 exit: [*Mat]) History --------- Turn | Location | Event 21 | -11/Scrapyard | Discovered new exit (range 15) 77 | -11/Scrapyard | Entered Materials 306 | -10/Materials | Build established: Mutant 334 | -10/Materials | Discovered new exit (range 8) 371 | -10/Materials | Lost 3 parts (1p2w) 444 | -10/Materials | Core integrity fell below 50% 474 | -10/Materials | Core integrity fell below 20% 479 | -10/Materials | Destroyed by G-47 Trooper with Particle Gun Last Messages --------------- 00442_ ALERT: Alarm triggered, dispatching investigation squad. 00443_ Slammed into G-34 Mercenary. 00444_ Com. Wheel broken. 00444_ Destabilizing: Short circuit. 00445_ Broken Com. Wheel destroyed. 00451_ Slammed into G-34 Mercenary. 00453_ Acquired 4 matter. 00454_ Slammed into G-34 Mercenary. 00457_ Slammed into G-47 Trooper. 00459_ Acquired 2 matter. 00460_ Slammed into G-47 Trooper. 00461_ Acquired 3 matter. 00462_ Slammed into G-47 Trooper. 00465_ Acquired 3 matter. 00468_ Slammed into G-34 Mercenary. 00471_ Lgt. Treads destroyed. 00471_ G-34 Mercenary destroyed. 00473_ Slammed into G-47 Trooper. 00473_ Destabilizing: Core damaged (-5). 00474_ Slammed into G-47 Trooper. Map ----- +----------------------------------------------------+ | | | | | | | | | | | | | | | | | | | | | | | | | | | | | | | | | | | ??????????????????????????????? | | ??????????????????????????????? | | ??????????????###?????????????? | | ??????????" # #####???????? | | ???????????? + T o #####???? | | ???????????????????# % #???? | | ???????????????????# [% %#???? | | ???????????????????# !%=%%#???? | | ???????????????????# *= g@#???? | | ??????????????????## %##???? | | ??????????????????#T #????? | | ??????????????????## ####?? | | ???????????????????# !!##? | | ???????????????????# !#? | | ???????????????????# !#? | | ???????????????????# !#? | | ???????????????????# !#? | | ???????????????????# !!##? | | ?????????????????### ####?? | | ?????????????????# #????? | | ?????????????????# ##### #????? | | ?????????????????# ??###+#####? | | ?????????????????# ??# # | | ?????????????????# ??# """ # | | ?????????????????# ### """ # | | ?????????????????# # """ # | | ?????????????????# + # | | ?????????????????+ # """ # | | ?????????????????# # """ # | | ? ????????????# # """ # | | " ????????????# # ?# | | ????????????# ####+####? | | #???????????# #??? #???? | +----------------------------------------------------+ Best States ------------- Heat Dissipation 25 Energy Generation 10 Energy Capacity 125 Matter Stores 300 Matter Capacity 300 Sight Range 16 Terrain Scan Density 10 Evasion (%) 40 Recoil Reduction 1 Item Schematics ----------------- None Robot Schematics ------------------ None Fabricated ------------ Nothing Alien Tech Used ----------------- None Achievements -------------- None Challenges ------------ None Game ------ Seed AntimatterDamperBlade Manual? 0 Play Time 00:07:25 Cumulative 162.1 hours Start 2022.09.27 @ 22:14:52 End 2022.09.27 @ 22:19:09 Sessions 1 Manual Loads 0 Difficulty Rogue Special Mode None Game No. 131 Rogue 128 Adventurer 3 Explorer 0 Win Type - Total 1 Types 1/0/0/0/0/0/0/0/0 Lore% 57 Gallery% 59 Achievement% 50 Wizard Run 0 Options --------- ASCII 0 Keyboard 0 Movement Numpad Keybinds 0 Fullscreen 1 Font 18/SmallcapsGlow Map View 76x50 Tactical HUD 1 Map Filters NONE Filters NONE Steam 1 RUN: 3d744566-9566-42b1-b500-c58bc93b4672